bitfinex/quotes_ETHUSD_20241216
["timestamp","ask_amount","ask_price","bid_price","bid_amount"]
[1734385396404,3.11409116,4030.5,4030.4,1.06253775]
[1734385396994,4.1447706,4030.5,4030.4,1.06253775]
[1734385400216,3.11409116,4030.5,4030.4,1.06253775]
[1734385400715,4.1447706,4030.5,4030.4,1.06253775]
[1734385401018,3.91459799,4030.5,4030.4,1.06253775]
[1734385401172,3.11403007,4030.5,4030.4,1.06253775]
[1734385401373,4.14470951,4030.5,4030.4,1.06253775]
[1734385401575,4.14471204,4030.5,4030.4,1.06253775]
[1734385403517,3.68310572,4030.5,4030.4,1.06253775]
[1734385404026,5.22912488,4030.5,4030.4,1.06253775]
[1734385404175,2.3610326,4030.5,4030.4,1.06253775]
[1734385404988,1.08248147,4030.5,4030.4,1.06253775]
[1734385405274,0.23011405,4030.5,4030.4,1.06253775]
[1734385407020,0.4142388,4030.5,4030.4,1.06253775]
[1734385407584,0.23011405,4030.5,4030.4,1.06253775]
[1734385407781,0.41421333,4030.5,4030.4,1.06253775]
[1734385408526,1.03123561,4031.0,4030.4,1.06253775]
[1734385408829,1.80583561,4031.1,4030.9,1.06253775]
[1734385409141,2.54589001,4031.0,4030.9,1.06253775]
[1734385409326,1.26691968,4031.0,4030.9,1.06253775]
[1734385411016,1.0827983,4031.0,4030.9,1.06253775]
[1734385411249,1.26685206,4031.0,4030.9,1.06253775]
[1734385411427,1.08264844,4031.0,4030.9,1.06253775]
[1734385411614,1.26664899,4031.0,4030.9,1.06253775]
[1734385411953,0.41400211,4031.0,4030.9,1.06253775]
[1734385414350,0.41403792,4031.0,4030.9,1.06253775]
[1734385415933,0.41403792,4031.0,4030.8,2.1250755]
[1734385416122,1.54601916,4031.6,4030.8,5.1250755]
[1734385416123,1.03123561,4031.6,4030.8,5.1250755]
[1734385416318,1.26602326,4031.5,4031.3,1.06253775]
[1734385416519,0.41419388,4031.4,4031.3,1.06253775]
[1734385417623,1.79033561,4031.7,4031.3,1.06253775]
[1734385417849,1.2660681,4031.6,4031.3,1.06253775]
[1734385418077,0.41421978,4031.5,4031.3,1.06253775]
[1734385418288,1.03123561,4031.9,4031.4,1.06253775]
[1734385418581,0.791,4032.0,4031.8,1.06253775]
[1734385418741,0.41416939,4031.9,4031.8,1.06253775]
[1734385420945,0.41395507,4031.9,4031.8,1.06253775]
[1734385421345,0.41394502,4031.9,4031.8,1.06253775]
[1734385424458,0.41398031,4031.9,4031.8,1.06253775]
[1734385426587,0.41398031,4031.9,4030.9,3.0]
[1734385426588,0.41398031,4031.9,4031.5,1.06253775]
[1734385426787,1.20828031,4031.8,4031.5,1.06253775]
[1734385426990,1.20828031,4031.8,4030.9,3.8148]
[1734385426991,0.7943,4031.8,4031.7,1.06253775]
[1734385427192,1.20809834,4031.8,4031.7,1.06253775]
[1734385427797,0.41379834,4031.8,4031.7,1.06253775]
[1734385428293,0.41380956,4031.8,4031.7,1.06253775]
[1734385428505,0.41377949,4031.8,4031.7,1.06253775]
[1734385428785,1.54601916,4032.7,4031.7,1.06253775]
[1734385428786,0.7943,4032.5,4031.7,1.06253775]
[1734385428986,0.7943,4032.5,4031.6,0.8148]
[1734385428987,0.41332768,4032.4,4032.1,1.06253775]
[1734385429223,0.41332768,4032.3,4032.1,1.06253775]
[1734385429492,0.41332768,4032.2,4032.1,1.06253775]
[1734385430790,0.7943,4032.5,4032.1,1.06253775]
[1734385431091,0.63194781,4032.4,4032.1,1.06253775]
[1734385431287,0.22962135,4032.3,4032.1,1.06253775]
[1734385431500,0.41333223,4032.2,4032.1,1.06253775]
[1734385433555,0.22962135,4032.2,4032.1,1.06253775]
[1734385433752,0.18378933,4032.2,4032.1,1.06253775]
[1734385433993,0.22962135,4032.6,4032.1,1.82523775]
[1734385434200,0.8278,4032.8,4032.5,1.06253775]
[1734385434357,0.41352131,4032.7,4032.5,1.06253775]
[1734385434556,0.41352131,4032.6,4032.5,1.06253775]
[1734385439488,1.18432131,4032.6,4032.5,1.06253775]
[1734385439687,0.7708,4032.6,4032.5,1.06253775]
[1734385439892,1.18423192,4032.6,4032.5,1.06253775]
[1734385440668,0.7708,4032.6,4032.5,1.06253775]
[1734385440868,1.00047852,4032.6,4032.5,1.06253775]
[1734385441093,1.18422133,4032.6,4032.5,1.06253775]
[1734385441295,0.7708,4032.6,4032.5,1.06253775]
[1734385441614,1.18420203,4032.6,4032.5,1.06253775]
[1734385443220,1.00046831,4032.6,4032.5,1.06253775]
[1734385443417,1.1845994,4032.6,4032.5,1.06253775]
[1734385444388,0.4137994,4032.6,4032.5,1.06253775]
[1734385446530,1.80783561,4032.9,4032.5,1.06253775]
[1734385446689,1.08286358,4032.8,4032.5,1.06253775]
[1734385446892,0.41536617,4032.7,4032.5,1.06253775]
[1734385447228,0.41536617,4032.6,4032.5,1.06253775]
[1734385447735,0.41536617,4032.6,4032.5,1.84593775]
[1734385449831,0.18451388,4032.6,4032.5,1.84593775]
[1734385450004,0.41515625,4032.6,4032.5,1.84593775]
[1734385450201,0.41516796,4032.6,4032.5,1.84593775]
[1734385452637,0.41516796,4032.6,4032.5,2.4962451]
[1734385452792,1.03123561,4033.5,4032.5,2.4962451]
[1734385452994,1.03123561,4033.6,4033.4,1.06253775]
[1734385453304,0.41509156,4033.5,4033.4,1.06253775]
[1734385453833,1.26767891,4033.5,4033.4,1.06253775]
[1734385454389,0.41509156,4033.5,4033.4,1.06253775]
[1734385456295,0.41438086,4033.5,4033.4,1.06253775]
[1734385459541,0.41256666,4033.5,4033.4,1.06253775]
[1734385459895,0.2289144,4033.5,4033.4,1.06253775]
[1734385460100,0.41204592,4033.5,4033.4,1.06253775]
[1734385461242,0.41204592,4033.5,4033.1,1.06253775]
[1734385461397,0.41204592,4033.4,4033.1,1.06253775]
[1734385461597,0.41204592,4033.3,4033.1,1.06253775]
[1734385461794,0.41204592,4033.2,4033.1,1.06253775]
[1734385466115,0.2289144,4033.2,4033.1,1.06253775]
[1734385466332,0.41327524,4033.2,4033.1,1.06253775]
[1734385472956,0.41472492,4033.2,4033.1,1.06253775]
[1734385474246,0.41472492,4033.2,4033.1,2.1250755]
[1734385474433,0.41472492,4033.2,4033.1,2.9130755]
[1734385478732,0.41472492,4033.2,4033.1,5.9130755]
[1734385480217,0.41519836,4033.2,4033.1,5.9130755]
[1734385482726,0.41519836,4033.2,4033.1,1.85053775]
[1734385482960,0.41519836,4033.2,4033.1,5.9130755]
[1734385483625,0.41612161,4033.2,4033.1,5.9130755]
[1734385486453,0.41655937,4033.2,4033.1,5.9130755]
[1734385486988,1.03123561,4033.7,4033.1,5.9130755]
[1734385487202,1.03123561,4033.7,4033.6,1.06253775]
[1734385487323,3.18461642,4033.7,4032.8,0.7796]
[1734385487529,1.03558682,4033.5,4033.3,1.06253775]
[1734385487730,2.30870667,4033.4,4033.3,1.06253775]
[1734385487929,3.59315795,4033.4,4033.3,1.06253775]
[1734385489672,2.55757113,4033.4,4033.3,1.06253775]
[1734385490243,2.14075213,4033.4,4033.3,1.06253775]
[1734385490445,2.55770074,4033.4,4033.3,1.06253775]
[1734385490794,2.55789268,4033.4,4033.3,1.06253775]
[1734385491634,4.10391184,4033.4,4033.3,1.06253775]
[1734385492235,4.36823796,4033.4,4033.3,1.06253775]
[1734385492437,4.37173603,4033.4,4033.3,1.06253775]
[1734385492665,4.10740991,4033.4,4033.3,1.06253775]
[1734385493376,4.36489061,4033.4,4033.3,1.06253775]
[1734385493531,3.94775006,4033.4,4033.3,1.06253775]
[1734385493739,4.3649603,4033.4,4033.3,1.06253775]
[1734385495078,4.3149603,4033.4,4033.3,1.06253775]
[1734385495647,2.81894114,4033.4,4033.3,1.06253775]
[1734385497108,2.81881889,4033.4,4033.3,1.06253775]
[1734385497375,2.56239726,4033.4,4033.3,1.06253775]
[1734385499641,2.56239726,4033.4,4033.3,1.86403775]
[1734385500181,2.14530927,4033.4,4033.3,1.86403775]
[1734385500349,2.56151825,4033.4,4033.3,1.86403775]
[1734385500559,2.37653648,4033.4,4033.3,1.86403775]
[1734385500770,2.56146305,4033.4,4033.3,1.06253775]
[1734385500970,2.5561249,4033.4,4033.3,1.06253775]
[1734385501487,2.5561249,4033.4,4033.2,1.06253775]
[1734385501642,2.5561249,4033.3,4033.2,1.06253775]
[1734385502488,2.5561249,4033.3,4033.0,0.8308]
[1734385502787,2.06061039,4033.4,4033.2,1.06253775]
[1734385502993,4.61506608,4033.3,4033.2,1.06253775]
[1734385503289,4.26543556,4033.3,4033.2,1.06253775]
[1734385503474,2.55445569,4033.3,4033.2,1.06253775]
[1734385504185,3.69176331,4033.3,4033.2,1.06253775]
[1734385505190,4.10764194,4033.3,4033.2,1.06253775]
[1734385505681,2.55460346,4033.3,4033.2,1.06253775]
[1734385506086,2.55505412,4033.3,4033.2,1.06253775]
[1734385508704,4.1080926,4033.3,4033.2,1.06253775]
[1734385509512,3.92325915,4033.3,4033.2,1.06253775]
[1734385509663,4.10842012,4033.3,4033.2,1.06253775]
[1734385510590,2.55538164,4033.3,4033.2,1.89533775]
[1734385510915,4.10842012,4033.3,4033.2,1.06253775]
[1734385511889,1.9692443,4033.3,4033.2,1.06253775]
[1734385512251,4.1101156,4033.3,4032.8,0.8328]
[1734385512536,1.03564398,4033.1,4032.5,0.7745]
[1734385512705,2.55707712,4033.0,4032.5,0.7745]
[1734385512905,2.55716016,4032.9,4032.5,0.7745]
[1734385513106,1.27255434,4032.8,4032.5,0.7745]
[1734385513313,1.03564398,4033.0,4032.5,0.7745]
[1734385513508,0.23117354,4032.7,4032.5,0.7745]
[1734385513723,1.03564398,4033.0,4032.6,1.06253775]
[1734385513909,1.03564398,4033.0,4032.9,1.06253775]
[1734385514113,3.59235729,4033.0,4032.9,1.06253775]
[1734385514840,3.59235729,4033.0,4032.5,0.7745]
[1734385515040,1.03564398,4033.0,4032.9,1.06253775]
[1734385515224,3.59147726,4033.0,4032.9,1.06253775]
[1734385516096,3.59214555,4033.0,4032.9,1.06253775]
[1734385517645,2.55473986,4033.0,4032.9,1.06253775]
[1734385517799,3.59038384,4033.0,4032.9,1.06253775]
[1734385517998,2.55473986,4033.0,4032.9,1.06253775]
[1734385519543,1.27145673,4033.0,4032.9,1.06253775]
[1734385519727,2.55481782,4033.0,4032.9,1.06253775]
[1734385520247,2.55481782,4033.0,4032.9,2.1250755]
[1734385520546,0.41593465,4033.0,4032.9,5.9301755]
[1734385520755,0.41587121,4033.0,4032.9,5.9301755]
[1734385521246,1.03564398,4033.3,4033.0,3.0]
[1734385521547,2.55470153,4033.2,4032.9,0.8051]
[1734385521748,1.27134696,4033.1,4032.9,0.8051]
[1734385522045,0.41577725,4033.0,4032.9,0.8051]
[1734385523850,0.41577725,4033.0,4032.9,1.86763775]
[1734385524019,0.41577725,4033.0,4032.9,1.06253775]
[1734385524222,0.41527989,4033.0,4032.9,1.06253775]
[1734385525124,0.41527989,4033.0,4032.9,1.08733161]
[1734385525343,0.41527989,4033.0,4032.9,1.06253775]
[1734385526918,0.41527989,4033.0,4032.9,2.8841755]
[1734385527122,1.55188917,4033.5,4033.0,3.0]
[1734385527123,1.03459278,4033.5,4033.0,3.0]
[1734385527440,1.28389329,4033.6,4033.2,5.1250755]
[1734385527643,1.03459278,4033.8,4033.5,1.06253775]
[1734385527809,1.03459278,4034.0,4033.3,0.815]
[1734385528010,2.13968183,4033.9,4033.7,1.06253775]
[1734385528211,1.03459278,4034.2,4033.7,1.87833775]
[1734385528523,0.85531993,4034.1,4033.7,0.8158]
[1734385528710,1.03459278,4034.3,4034.0,1.06253775]
[1734385528910,0.85537763,4034.2,4034.0,1.06253775]
[1734385529108,1.03459278,4034.4,4034.0,1.06253775]
[1734385529328,1.03459278,4034.5,4034.3,1.06253775]
[1734385529606,1.03459278,4034.6,4034.4,2.1250755]
[1734385529851,0.85499202,4034.5,4034.4,1.06253775]
[1734385530163,0.25829129,4034.5,4034.4,1.06253775]
[1734385532273,0.29161065,4034.5,4034.4,1.06253775]
[1734385533583,0.03331936,4034.5,4034.4,1.06253775]
[1734385533945,0.7793,4034.9,4034.4,1.06253775]
[1734385534148,0.02918136,4034.5,4034.2,0.7626]
[1734385534383,0.7793,4034.9,4034.2,0.7626]
[1734385534544,0.02918136,4034.4,4034.2,0.7626]
[1734385534758,0.7793,4034.9,4034.2,0.7626]
[1734385535353,0.02918136,4034.8,4034.2,0.7626]
[1734385535553,0.02918136,4034.8,4034.7,1.06253775]
[1734385538691,0.7611,4035.1,4034.7,1.06253775]
[1734385538871,0.02918136,4034.8,4034.7,1.06253775]
[1734385539081,0.7611,4035.1,4034.7,1.06253775]
[1734385539390,0.41375477,4035.0,4034.4,1.06253775]
[1734385539592,0.7611,4035.1,4034.9,1.06253775]
[1734385539903,0.41376427,4035.0,4034.9,1.06253775]
[1734385540804,0.7611,4035.1,4034.9,1.06253775]
[1734385540975,0.41369738,4035.0,4034.9,1.06253775]
[1734385543409,0.4427154,4035.0,4034.9,1.06253775]
[1734385544370,0.4427041,4035.0,4034.9,1.06253775]
[1734385544696,0.02901802,4035.0,4034.9,1.06253775]
[1734385545113,0.7611,4035.5,4034.9,1.06253775]
[1734385545314,0.41351935,4035.4,4034.8,0.7872]
[1734385545484,0.94066928,4035.5,4035.3,1.06253775]
[1734385545818,0.41341709,4035.4,4035.3,1.06253775]
[1734385548215,0.41353741,4035.4,4035.3,1.06253775]
[1734385551535,0.41387013,4035.4,4035.3,1.06253775]
[1734385551824,0.7611,4035.8,4035.3,1.06253775]
[1734385552013,0.22993128,4035.4,4035.3,1.06253775]
[1734385552183,0.41387633,4035.4,4035.3,1.06253775]
[1734385555055,0.41387464,4035.4,4035.3,1.06253775]
[1734385555211,0.8165,4035.3,4034.5,0.7616]
[1734385555538,0.41387464,4035.2,4035.0,1.06253775]
[1734385555756,0.18394336,4035.1,4035.0,1.06253775]
[1734385555895,0.41387464,4035.1,4035.0,1.06253775]
[1734385556230,0.8165,4035.0,4033.7,0.7616]
[1734385556435,0.41387464,4034.9,4034.8,1.06253775]
[1734385557916,0.41387464,4034.9,4034.8,1.05541753]
[1734385558095,0.41422237,4034.9,4034.8,1.05541753]
[1734385561000,1.0213536,4035.3,4034.8,1.05541753]
[1734385561236,0.41492125,4035.2,4035.1,1.06253775]
[1734385561588,0.62051589,4035.2,4035.1,1.06253775]
[1734385562233,1.38341589,4035.2,4035.1,1.06253775]
[1734385563385,2.23487505,4035.2,4034.9,1.06253775]
[1734385563535,0.41492125,4035.1,4034.9,1.06253775]
[1734385563878,0.16418695,4035.0,4034.9,1.06253775]
[1734385564173,0.57912959,4035.0,4034.9,1.06253775]
[1734385565947,0.57912959,4035.0,4033.7,0.65030735]
[1734385566158,0.41494264,4034.9,4034.8,1.06253775]
[1734385569648,1.26767354,4034.9,4034.8,1.06253775]
[1734385569851,1.76635725,4034.9,4034.8,1.06253775]
[1734385570254,0.91362635,4034.9,4034.8,1.06253775]
[1734385570457,0.91368373,4034.9,4034.8,1.06253775]
[1734385570766,3.84990595,4034.9,4034.8,1.06253775]
[1734385570940,4.08049773,4034.9,4034.8,1.06253775]
[1734385571540,3.58181402,4034.9,4034.8,1.06253775]
[1734385571742,0.41506811,4034.9,4034.8,1.84753775]
[1734385572413,0.4150291,4034.9,4034.8,1.84753775]
[1734385572546,1.2686379,4034.9,4034.8,1.84753775]
[1734385572743,0.89587796,4034.9,4034.8,1.84753775]
[1734385572994,2.58086461,4035.7,4034.8,1.84753775]
[1734385572995,1.55188917,4036.4,4035.2,0.55]
[1734385573143,0.827,4036.9,4036.3,1.06253775]
[1734385573144,1.55188917,4036.7,4036.3,1.06253775]
[1734385573343,1.2820019,4036.6,4036.1,0.40193685]
[1734385573543,1.56438918,4036.5,4036.3,1.06253775]
[1734385573746,1.55188917,4036.8,4036.3,1.06253775]
[1734385573946,2.58086461,4037.2,4036.2,0.8295]
[1734385573947,1.55188917,4037.1,4036.2,0.8295]
[1734385574262,0.827,4037.2,4036.2,0.8295]
[1734385574263,1.72636789,4037.0,4036.2,0.8295]
[1734385574468,1.72636789,4037.0,4036.9,1.06253775]
[1734385574469,0.44480747,4037.0,4036.9,1.06253775]
[1734385574662,0.827,4037.2,4036.9,1.06253775]
[1734385574862,1.28104005,4037.1,4036.9,1.06253775]
[1734385575087,0.827,4037.2,4036.9,1.06253775]
[1734385575287,1.2810286,4037.1,4036.9,1.06253775]
[1734385575589,0.827,4037.2,4036.9,1.06253775]
[1734385576719,1.55188917,4037.7,4036.9,1.06253775]
[1734385576871,1.55188917,4038.2,4037.4,1.06253775]
[1734385577202,1.28049486,4038.1,4037.0,0.7787]
[1734385577401,1.55188917,4038.4,4037.0,0.7787]
[1734385577571,1.55188917,4038.7,4037.0,0.7787]
[1734385577778,1.64143214,4038.6,4037.9,1.06253775]
[1734385577971,1.27932467,4038.5,4037.9,1.06253775]
[1734385578219,0.36210747,4038.6,4037.9,1.06253775]
[1734385578525,1.72156977,4039.1,4038.2,1.06253775]
[1734385578691,1.27783874,4039.0,4038.2,1.06253775]
[1734385578889,1.27783874,4038.9,4038.2,1.06253775]
[1734385579199,0.14475193,4038.8,4038.2,1.06253775]
[1734385579373,0.55,4039.0,4038.2,1.06253775]
[1734385579572,0.8324,4038.8,4038.2,1.06253775]
[1734385579991,0.8324,4038.8,4037.6,2.29271455]
[1734385580173,0.13824,4038.7,4037.6,2.29271455]
[1734385580914,0.13824,4038.7,4038.0,2.29271455]
[1734385583123,0.13824,4038.7,4038.1,0.7866]
[1734385583286,0.1696806,4039.1,4038.4,2.29271455]
[1734385583495,0.1696806,4039.1,4038.8,2.29271455]
[1734385586682,0.1696806,4039.1,4038.5,3.7866]
[1734385588050,0.1696806,4039.1,4039.0,2.29271455]
[1734385589055,0.1696806,4039.1,4038.6,5.29271455]
[1734385591319,0.1696806,4039.1,4038.6,5.68881408]
[1734385591758,0.1696806,4039.1,4038.6,5.29271455]
[1734385592266,0.1696806,4039.1,4038.5,0.7866]
[1734385597528,0.1696806,4039.1,4038.6,2.29271455]
[1734385597755,0.1696806,4039.1,4038.6,5.29271455]
[1734385598140,0.1696806,4039.1,4038.6,5.68881408]
[1734385598328,0.1696806,4039.1,4038.7,0.39609953]
[1734385598524,0.1696806,4039.1,4038.7,3.39609953]
[1734385600387,0.1696806,4039.1,4038.6,5.29271455]
[1734385602366,0.7674,4039.0,4038.2,0.39609953]
[1734385602692,0.7674,4039.0,4037.2,3.09651455]
[1734385603979,0.8219,4038.9,4037.3,2.64523474]
[1734385605053,0.7576,4038.7,4037.3,2.64523474]
[1734385605355,0.7576,4038.7,4037.4,3.0]
[1734385605531,0.02382903,4038.6,4037.4,3.0]
[1734385605860,0.7576,4038.5,4037.4,3.0]
[1734385609889,0.7576,4038.5,4037.3,2.29271455]
[1734385610304,0.7576,4038.5,4036.9,3.44573474]
[1734385610517,0.02290342,4038.4,4037.0,3.0]
[1734385610743,0.7576,4038.3,4037.0,3.0]
[1734385611106,0.02290342,4038.2,4037.0,3.0]
[1734385611300,0.7576,4038.1,4037.0,3.0]
[1734385612202,0.7576,4038.1,4036.5,2.41534859]
[1734385612541,0.7576,4038.1,4036.4,0.35252019]
[1734385612765,0.80041468,4038.0,4036.4,0.35252019]
[1734385616852,0.80041468,4038.0,4036.5,2.29271455]
[1734385617049,0.80041468,4038.0,4036.5,5.64523474]
[1734385617723,0.7778,4037.8,4036.5,5.64523474]
[1734385617918,0.02195305,4037.7,4036.5,5.64523474]
[1734385618122,0.7778,4037.6,4036.5,5.64523474]
[1734385618579,0.02195305,4037.5,4036.5,5.64523474]
[1734385620670,0.7778,4037.6,4036.5,5.64523474]
[1734385623169,0.7778,4037.6,4036.9,2.29271455]
[1734385623468,0.7607,4038.3,4037.3,2.29271455]
[1734385625537,0.7607,4038.3,4037.4,0.02476517]
[1734385625973,0.7607,4038.3,4037.7,2.29271455]
[1734385627948,0.8123,4038.6,4038.1,2.29271455]
[1734385628136,0.8123,4039.0,4038.2,0.02476161]
[1734385628335,0.8123,4039.0,4038.5,2.29271455]
[1734385628570,0.1696806,4039.1,4038.6,0.8201]
[1734385628755,0.1696806,4039.1,4038.6,3.8201]
[1734385629480,0.1696806,4039.1,4038.9,2.29271455]
[1734385629685,0.1696806,4039.1,4038.6,3.8201]
[1734385630191,0.1696806,4039.1,4038.5,2.29271455]
[1734385633394,0.1696806,4039.1,4038.9,2.29271455]
[1734385633892,0.1696806,4039.1,4038.5,2.29271455]
[1734385634106,0.1696806,4039.1,4038.6,3.0]
[1734385634283,0.1696806,4039.1,4038.5,2.29271455]
[1734385634481,0.9542806,4039.1,4038.5,2.29271455]
[1734385634855,0.02294778,4039.0,4038.5,2.29271455]
[1734385636398,0.9542806,4039.1,4038.1,0.1238536]
[1734385636399,0.9542806,4039.1,4038.1,2.29271455]
[1734385638161,0.02302652,4039.0,4038.1,2.29271455]
[1734385638361,0.7925,4038.9,4038.1,2.29271455]
[1734385639805,0.02225897,4038.8,4038.1,2.29271455]
[1734385639956,0.7925,4038.7,4038.1,2.29271455]
[1734385648584,0.7813,4039.0,4038.5,2.29271455]
[1734385648786,0.7813,4039.0,4038.5,3.05071455]
[1734385649098,0.1696806,4039.1,4038.5,3.05071455]
[1734385649481,0.1696806,4039.1,4038.9,2.29271455]
[1734385652034,0.1696806,4039.1,4038.6,3.0]
[1734385652207,0.1696806,4039.1,4038.5,2.29271455]
[1734385652739,0.7663,4039.0,4038.1,2.29271455]
[1734385654897,0.19651758,4038.9,4037.7,2.29271455]
[1734385655096,0.7755,4038.7,4037.3,2.29271455]
[1734385655743,1.02919524,4038.8,4037.3,2.29271455]
[1734385655744,0.85078147,4038.6,4037.3,2.29271455]
[1734385655899,0.7755,4038.5,4037.3,2.29271455]
[1734385656676,0.7755,4038.5,4037.4,3.0]
[1734385657212,0.95596952,4038.5,4037.4,3.0]
[1734385657431,0.7755,4038.5,4037.4,3.0]
[1734385658633,0.7755,4038.5,4037.4,0.35252019]
[1734385658838,0.7755,4038.5,4037.4,3.35252019]
[1734385659731,0.7755,4038.5,4037.1,0.7543]
[1734385659732,0.7755,4038.5,4037.7,2.29271455]
[1734385660056,0.7755,4038.9,4038.1,2.29271455]
[1734385660219,0.7755,4038.9,4038.1,2.64523474]
[1734385660403,0.7755,4038.9,4038.2,3.0]
[1734385660745,0.7755,4038.9,4038.1,2.64523474]
[1734385660746,0.7755,4038.9,4038.1,2.29271455]
[1734385661044,0.7755,4038.9,4038.2,3.0]
[1734385661208,0.7755,4038.9,4038.1,2.29271455]
[1734385662451,0.7755,4038.9,4038.5,2.29271455]
[1734385663652,0.1696806,4039.1,4038.5,2.29271455]
[1734385666011,0.1696806,4039.1,4038.5,5.29271455]
[1734385668399,0.1696806,4039.1,4038.9,2.29271455]
[1734385669399,0.1696806,4039.1,4039.0,3.768]
[1734385669603,0.1696806,4039.1,4039.0,4.45496175]
[1734385672051,0.1696806,4039.1,4039.0,5.2706686]
[1734385672411,0.1696806,4039.1,4038.3,1.03253721]
[1734385672643,0.1696806,4039.1,4037.5,0.33444156]
[1734385672644,0.8127,4039.0,4038.2,2.29271455]
[1734385673147,0.1696806,4039.1,4038.6,2.29271455]
[1734385673148,0.0224685,4038.9,4038.6,2.29271455]
[1734385673329,0.0224685,4038.9,4038.8,3.09611455]
[1734385673534,0.1696806,4039.1,4038.8,3.44863474]
[1734385673752,0.1696806,4039.1,4038.9,0.35252019]
[1734385674043,0.1696806,4039.1,4038.9,3.35252019]
[1734385674044,0.8127,4039.0,4038.9,3.35252019]
[1734385674404,0.8127,4039.0,4038.8,2.29271455]
[1734385675144,0.02251573,4038.9,4038.8,2.29271455]
[1734385675346,0.8127,4039.0,4038.8,2.29271455]
[1734385675546,0.1696806,4039.1,4038.8,2.29271455]
[1734385677452,0.1696806,4039.1,4038.9,3.0]
[1734385677639,0.12875946,4039.1,4038.8,2.29271455]
[1734385677848,1.02919524,4039.9,4039.0,0.55]
[1734385678031,0.7662,4040.3,4039.5,2.29271455]
[1734385678210,0.7662,4040.8,4040.0,2.29271455]
[1734385678544,0.7662,4040.8,4040.4,2.29271455]
[1734385678545,0.94573952,4040.8,4040.4,2.29271455]
[1734385678751,0.7662,4040.8,4040.4,2.29271455]
[1734385681321,0.7662,4041.3,4040.4,2.29271455]
[1734385681511,0.7662,4041.3,4040.9,2.29271455]
[1734385682120,0.7662,4041.3,4039.9,3.0]
[1734385682351,0.7662,4041.3,4039.9,5.29271455]
[1734385682512,1.02919524,4041.5,4039.9,5.29271455]
[1734385682513,0.7662,4041.1,4039.9,5.29271455]
[1734385685255,0.7662,4041.1,4040.3,2.29271455]
[1734385687048,0.7662,4041.1,4039.5,2.29271455]
[1734385687438,0.7662,4040.9,4039.5,2.29271455]
[1734385687641,0.8018,4040.8,4039.5,2.29271455]
[1734385687841,0.8018,4040.7,4039.5,2.29271455]
[1734385688013,0.8018,4040.5,4039.5,2.29271455]
[1734385692931,1.02919524,4041.1,4040.4,2.29271455]
[1734385693195,1.02919524,4041.1,4039.6,1.08752019]
[1734385693196,0.7551,4041.0,4040.8,2.29271455]
[1734385694349,0.7551,4041.4,4040.8,2.29271455]
[1734385697014,0.7551,4042.0,4041.2,2.29271455]
[1734385697218,0.17842952,4041.9,4041.2,2.29271455]
[1734385697804,0.17842952,4041.9,4040.4,0.31360823]
[1734385697805,0.7551,4041.7,4040.4,2.29271455]
[1734385698682,0.7551,4041.7,4040.8,2.29271455]
[1734385699725,0.7551,4041.7,4040.8,5.29271455]
[1734385700410,0.7551,4041.7,4041.2,2.29271455]
[1734385700609,0.7819,4042.6,4041.2,2.29271455]
[1734385700929,0.91062168,4042.6,4041.2,2.29271455]
[1734385701097,0.84901625,4042.5,4041.2,2.29271455]
[1734385701285,0.7819,4042.4,4041.2,2.29271455]
[1734385705430,0.84942802,4042.3,4041.2,2.29271455]
[1734385705600,0.7819,4042.2,4041.2,2.29271455]
[1734385708533,0.7819,4042.2,4041.6,2.29271455]
[1734385712118,0.02194431,4042.1,4041.6,2.29271455]
[1734385712949,0.8013,4042.0,4041.6,2.29271455]
[1734385713261,0.82446645,4041.9,4040.8,2.29271455]
[1734385720130,0.25800955,4041.8,4040.8,2.29271455]
[1734385720555,0.25800955,4041.8,4041.2,2.29271455]
[1734385720827,0.02316645,4041.7,4041.2,2.29271455]
[1734385721035,0.25800955,4041.8,4041.2,2.29271455]
[1734385721341,0.02316645,4041.7,4041.2,2.29271455]
[1734385723226,0.02316645,4041.7,4041.1,3.0]
[1734385723227,0.02316645,4041.7,4041.0,0.7732]
[1734385723454,0.02316645,4041.7,4041.1,2.29271455]
[1734385723624,0.02316645,4041.7,4041.1,5.29271455]
[1734385723827,0.02316645,4041.7,4041.5,2.29271455]
[1734385724027,0.25800955,4041.8,4041.5,2.29271455]
[1734385724269,0.02295151,4041.7,4041.5,2.29271455]
[1734385724656,0.25800955,4041.8,4041.5,2.29271455]
[1734385724829,0.02295151,4041.6,4041.5,2.29271455]
[1734385725034,0.8013,4041.9,4041.5,2.29271455]
[1734385725229,0.02295151,4041.8,4041.5,2.29271455]
[1734385731157,0.8239,4042.2,4041.5,2.29271455]
[1734385732552,0.02258818,4042.1,4041.5,2.29271455]
[1734385733150,0.02258818,4042.1,4041.9,2.29271455]
[1734385733565,0.02258818,4042.1,4041.5,2.29271455]
[1734385734095,0.02241574,4042.0,4041.5,2.29271455]
[1734385734399,0.02241574,4042.0,4041.1,3.0]
[1734385734400,0.02241574,4042.0,4041.9,2.29271455]
[1734385734551,0.816,4042.5,4041.9,2.31745343]
[1734385734758,0.816,4042.5,4041.9,2.29271455]
[1734385734951,1.02919524,4042.8,4042.3,2.29271455]
[1734385735147,0.816,4042.8,4042.3,2.29271455]
[1734385736193,0.02247867,4042.7,4042.3,2.29271455]
[1734385736389,0.816,4042.8,4042.3,2.29271455]
[1734385736798,1.84519524,4042.6,4041.9,2.29271455]
[1734385736954,1.6683891,4042.5,4041.9,2.29271455]
[1734385737153,2.13083599,4042.4,4041.5,2.29271455]
[1734385737356,3.73449231,4042.4,4041.5,2.29271455]
[1734385737555,2.13129453,4042.3,4041.5,2.29271455]
[1734385737865,0.84926174,4042.2,4041.5,2.29271455]
[1734385738709,0.85300728,4042.1,4041.5,2.29271455]
[1734385738939,1.87845698,4042.2,4041.5,2.29271455]
[1734385739139,3.16167527,4042.1,4041.5,2.29271455]
[1734385739443,2.13248003,4042.0,4041.5,2.29271455]
[1734385739639,3.16167527,4042.0,4041.5,2.29271455]
[1734385739944,0.87575837,4041.9,4041.5,2.29271455]
[1734385740140,0.02276174,4041.9,4041.5,2.29271455]
[1734385740446,0.85312422,4041.8,4041.5,2.29271455]
[1734385740649,1.02919524,4042.0,4041.5,2.29271455]
[1734385740795,0.02276174,4041.9,4041.5,2.29271455]
[1734385741009,0.85331853,4041.8,4041.5,2.29271455]
[1734385741463,0.02276174,4041.7,4041.0,0.8173]
[1734385741758,0.7859,4041.6,4041.2,2.29271455]
[1734385741927,1.63973378,4041.6,4041.2,2.29271455]
[1734385742128,0.02245771,4041.5,4041.2,2.29271455]
[1734385745363,1.02919524,4041.8,4041.2,2.29271455]
[1734385745564,0.02245771,4041.4,4041.2,2.29271455]
[1734385745715,1.02919524,4041.8,4041.2,2.29271455]
[1734385745919,0.02245771,4041.3,4041.2,2.29271455]
[1734385746165,1.02919524,4041.8,4041.2,2.29271455]
[1734385746370,0.02245771,4041.3,4041.2,2.29271455]